bitfinex/quotes_SOLUSD_20240708
["timestamp","ask_amount","ask_price","bid_price","bid_amount"]
[1720451663693,1.66731151,139.33,139.27,100.0]
[1720451663993,6.1938,139.4,139.29,0.17]
[1720451664198,1.79376554,139.39,139.3,100.0]
[1720451664391,8.96826554,139.39,139.32,0.17]
[1720451664703,1.79370016,139.39,139.33,1.05695972]
[1720451664906,7.9876342,139.4,139.34,0.17]
[1720451665072,1.7938342,139.39,139.3,0.17]
[1720451665397,7.1778,139.32,139.26,0.17]
[1720451665694,8.9700987,139.36,139.28,100.0]
[1720451665994,24.1279,139.4,139.3,100.0]
[1720451665995,20.0,139.35,139.3,100.0]
[1720451666207,1.79407354,139.38,139.31,0.17]
[1720451666369,0.17,139.37,139.32,100.0]
[1720451666704,1.45384713,139.37,139.28,100.0]
[1720451666867,1.79412497,139.39,139.31,0.17]
[1720451667071,1.66731151,139.38,139.31,1.05737307]
[1720451667271,7.1752,139.37,139.31,1.05737307]
[1720451667496,27.1757,139.36,139.31,1.05737307]
[1720451667681,20.0,139.36,139.31,1.05737307]
[1720451667998,1.79417904,139.35,139.24,101.05008173]
[1720451668193,0.17,139.34,139.24,101.05008173]
[1720451668379,0.17,139.34,139.25,1.05000631]
[1720451668807,7.1787,139.31,139.25,1.05000631]
[1720451669107,20.0,139.3,139.25,1.05000631]
[1720451670083,20.0,139.3,139.22,100.0]
[1720451670284,7.1804,139.27,139.2,100.0]
[1720451670486,1.96485707,139.29,139.2,100.0]
[1720451670487,3.46216858,139.29,139.21,1.06052196]
[1720451670691,20.0,139.26,139.22,100.0]
[1720451670901,20.0,139.26,139.23,1.06039984]
[1720451671099,20.0,139.26,139.21,1.06039984]
[1720451671303,1.66731151,139.28,139.22,121.63]
[1720451671487,1.66731151,139.28,139.23,1.05991624]
[1720451671688,1.66731151,139.28,139.26,100.0]
[1720451672012,1.66731151,139.28,139.19,121.63]
[1720451672013,8.84741151,139.28,139.19,121.63]
[1720451672190,1.66731151,139.28,139.2,1.05895468]
[1720451672691,1.66731151,139.28,139.25,121.63]
[1720451672916,5.66259067,139.33,139.25,121.63]
[1720451672917,7.1778,139.32,139.25,100.0]
[1720451673205,7.1767,139.34,139.27,100.0]
[1720451673409,1.79428168,139.37,139.28,121.8]
[1720451673617,1.79428168,139.37,139.28,100.17]
[1720451673618,3.46159319,139.37,139.28,100.17]
[1720451673792,10.63719319,139.37,139.28,100.17]
[1720451674105,3.46159319,139.37,139.29,1.05779561]
[1720451674312,3.46159319,139.37,139.27,0.17]
[1720451674531,3.46159319,139.37,139.27,101.05898492]
[1720451674532,21.40039319,139.37,139.27,101.05898492]
[1720451674680,1.66731151,139.37,139.32,100.0]
[1720451674877,1.66731151,139.37,139.34,100.0]
[1720451675077,1.66731151,139.37,139.35,1.05671254]
[1720451675284,1.66731151,139.37,139.36,100.0]
[1720451675587,1.66731151,139.37,139.36,100.17]
[1720451675786,1.66731151,139.37,139.34,0.17]
[1720451676116,1.66731151,139.37,139.34,1.22665086]
[1720451676430,1.66731151,139.37,139.36,0.17]
[1720451676595,1.66731151,139.37,139.36,1.2258595]
[1720451677608,7.172,139.43,139.36,1.2258595]
[1720451677982,7.1716,139.44,139.36,1.2258595]
[1720451678187,8.83891151,139.44,139.38,0.17]
[1720451678384,7.1722,139.43,139.38,1.05525634]
[1720451678595,1.66731151,139.44,139.39,0.17]
[1720451678820,1.66731151,139.44,139.39,1.05508621]
[1720451679001,8.83931151,139.44,139.4,1.05517317]
[1720451679210,8.83931151,139.44,139.37,100.0]
[1720451679211,27.1724,139.43,139.38,1.05517017]
[1720451679514,1.79313883,139.42,139.37,100.0]
[1720451679841,1.9633269,139.41,139.29,100.0]
[1720451680010,17.936,139.39,139.27,100.0]
[1720451680188,22.13412859,139.38,139.27,100.0]
[1720451680390,22.13412859,139.38,139.25,100.0]
[1720451680688,7.1786,139.31,139.24,21.63]
[1720451680881,22.13412859,139.38,139.22,100.0]
[1720451680882,20.17,139.3,139.22,100.0]
[1720451681379,7.1802,139.28,139.19,121.63]
[1720451681579,20.17,139.27,139.21,21.63]
[1720451681787,20.0,139.27,139.21,121.63]
[1720451682085,20.0,139.27,139.19,100.0]
[1720451682398,0.17,139.26,139.19,21.63]
[1720451682605,0.17,139.26,139.2,121.63]
[1720451682785,0.17,139.26,139.21,1.06055556]
[1720451682786,21.96519843,139.26,139.21,1.06055556]
[1720451683107,27.1812,139.26,139.19,100.0]
[1720451683296,0.17,139.25,139.17,100.0]
[1720451683611,0.17,139.25,139.19,121.63]
[1720451683806,21.96530435,139.28,139.2,0.52304511]
[1720451684014,0.17,139.27,139.2,0.52304511]
[1720451684421,0.17,139.27,139.21,121.63]
[1720451684711,20.0,139.3,139.24,0.17]
[1720451685098,20.0,139.3,139.24,0.692895]
[1720451685415,20.0,139.31,139.25,101.05949549]
[1720451685618,27.1777,139.32,139.26,0.17]
[1720451685786,27.1777,139.32,139.25,100.0]
[1720451685787,7.1783,139.31,139.25,100.0]
[1720451685988,5.86475292,139.32,139.26,1.05918308]
[1720451686310,7.98832679,139.33,139.26,1.22894362]
[1720451686499,1.79445888,139.36,139.28,100.0]
[1720451686806,7.1747,139.38,139.31,0.17]
[1720451687012,7.1752,139.37,139.31,1.05724535]
[1720451687192,7.1763,139.35,139.31,1.05724535]
[1720451687521,7.1767,139.34,139.31,1.05724535]
[1720451687715,7.1763,139.35,139.31,1.05724535]
[1720451688008,5.77044941,139.39,139.34,100.0]
[1720451688191,8.96615212,139.43,139.36,121.63]
[1720451688391,20.71106084,139.44,139.37,1.22555995]
[1720451688709,1.79313733,139.43,139.37,1.05555995]
[1720451688918,7.1727,139.42,139.37,1.05555995]
[1720451689208,7.1727,139.42,139.3,7.1786]
[1720451689209,1.79358307,139.41,139.32,0.17]
[1720451689387,7.1735,139.41,139.34,0.17]
[1720451689583,7.1737,139.4,139.34,1.22643456]
[1720451689821,7.1732,139.41,139.34,1.22643456]
[1720451690514,1.79348134,139.42,139.34,1.22643456]
[1720451690717,1.79349985,139.41,139.34,1.22643456]
[1720451690889,7.1747,139.38,139.34,1.05643456]
[1720451691091,27.1753,139.37,139.32,1.05721537]
[1720451691414,8.9699891,139.36,139.32,1.05765316]
[1720451691717,20.0,139.35,139.28,100.0]
[1720451691891,20.0,139.35,139.29,1.05819006]
[1720451691892,0.17,139.34,139.29,1.05819006]
[1720451692415,20.17,139.35,139.3,100.0]
[1720451692592,20.17,139.35,139.28,21.63]
[1720451692593,7.1762,139.35,139.31,1.05767396]
[1720451692788,20.17,139.34,139.29,1.05767396]
[1720451693105,29.14142598,139.34,139.28,1.05870169]
[1720451693828,7.1772,139.33,139.28,1.05870169]
[1720451693994,20.0,139.32,139.29,101.05862568]
[1720451694195,20.0,139.34,139.31,100.0]
[1720451694394,20.0,139.34,139.29,100.0]
[1720451694706,0.17,139.35,139.3,1.05802976]
[1720451694911,7.1776,139.33,139.27,100.0]
[1720451695210,7.1776,139.33,139.25,100.0]
[1720451695211,20.17,139.32,139.25,100.0]
[1720451695415,20.0,139.32,139.27,100.0]
[1720451695915,20.17,139.33,139.27,100.0]
[1720451696116,0.17,139.32,139.27,100.0]
[1720451696319,1.66731151,139.34,139.29,100.0]
[1720451696520,1.66731151,139.34,139.3,0.17]
[1720451696906,1.66731151,139.34,139.29,100.0]
[1720451697394,14.73285423,139.38,139.32,0.17]
[1720451697598,1.79377977,139.41,139.32,1.22715078]
[1720451697793,1.66731151,139.4,139.32,1.22715078]
[1720451698126,1.66731151,139.4,139.34,0.17]
[1720451698297,1.66731151,139.4,139.39,0.17]
[1720451698503,7.1722,139.43,139.39,0.17]
[1720451698715,7.1716,139.44,139.39,1.22532903]
[1720451698913,1.79309054,139.43,139.39,1.05532903]
[1720451699122,7.1722,139.43,139.37,0.17]
[1720451699297,7.1722,139.43,139.37,1.22565617]
[1720451699497,7.1716,139.44,139.37,101.22565617]
[1720451699932,7.172,139.43,139.37,101.22565617]
[1720451700402,1.45488826,139.42,139.33,0.17]
[1720451700718,8.96607453,139.42,139.35,0.17]
[1720451700918,20.17,139.41,139.35,1.22602663]
[1720451701120,1.79332107,139.45,139.37,0.17]
[1720451701299,1.79276268,139.47,139.39,0.17]
[1720451701498,7.1716,139.44,139.39,1.22500267]
[1720451701692,17.9274,139.46,139.39,1.05500267]
[1720451701900,1.7930551,139.45,139.38,0.17]
[1720451702099,7.1725,139.42,139.38,1.05560391]
[1720451702300,19.71883524,139.47,139.38,1.05560391]
[1720451702498,7.1726,139.42,139.38,1.05560391]
[1720451702712,20.17,139.41,139.38,1.05560391]
[1720451703121,0.17,139.41,139.36,1.05607797]
[1720451703324,0.17,139.41,139.23,35.9108]
[1720451703325,2.1334548,139.41,139.32,101.05637084]
[1720451703510,2.1334548,139.41,139.28,115.0]
[1720451703511,2.1334548,139.41,139.33,1.05722038]
[1720451703719,2.1334548,139.41,139.28,100.0]
[1720451703720,17.9361,139.39,139.31,1.05747003]
[1720451703927,7.1773,139.33,139.29,1.05808818]
[1720451704230,20.0,139.32,139.26,100.0]
[1720451704431,20.17,139.32,139.27,1.05821119]
[1720451704600,0.17,139.31,139.27,1.05821119]
[1720451704802,0.17,139.31,139.25,1.05821129]
[1720451705018,7.3485,139.31,139.25,1.05821129]
[1720451705227,20.17,139.3,139.25,1.05821129]
[1720451705425,20.17,139.3,139.26,100.0]
[1720451705642,20.0,139.3,139.27,1.05805932]
[1720451705929,21.7944122,139.35,139.28,100.0]
[1720451706136,0.17,139.34,139.28,100.0]
[1720451706315,27.5167,139.34,139.28,100.0]
[1720451706717,27.5167,139.34,139.29,0.52313035]
[1720451706923,27.5167,139.34,139.29,1.05845703]
[1720451706924,20.34,139.34,139.29,1.05845703]
[1720451707120,7.84641351,139.37,139.32,0.17]
[1720451707304,6.53329134,139.43,139.32,0.17]
[1720451707305,7.84596577,139.42,139.32,0.17]
[1720451707505,7.1742,139.39,139.32,0.17]
[1720451707730,7.1737,139.4,139.33,100.0]
[1720451707941,7.84594923,139.42,139.35,121.8]
[1720451708227,5.786374,139.45,139.39,0.17]
[1720451708639,8.96343751,139.46,139.39,0.17]
[1720451708800,5.65395873,139.46,139.42,121.63]
[1720451709005,7.1675,139.52,139.46,0.17]
[1720451709206,5.7597753,139.54,139.49,100.0]
[1720451709407,49.1022,139.6,139.52,0.17]
[1720451709408,7.49921857,139.55,139.52,0.17]
[1720451709618,7.1654,139.56,139.52,0.54005724]
[1720451709866,7.1648,139.58,139.52,0.54005724]
[1720451710035,5.6427213,139.59,139.52,0.54005724]
[1720451710333,13.54967512,139.6,139.52,0.54005724]
[1720451710522,15.34065743,139.6,139.48,100.0]
[1720451710840,15.34065743,139.6,139.42,100.0]
[1720451710841,17.9162,139.54,139.42,100.0]
[1720451711132,1.79221712,139.53,139.45,100.0]
[1720451711330,1.79221712,139.53,139.37,100.0]
[1720451711331,8.95703252,139.57,139.49,100.0]
[1720451711540,1.79137031,139.59,139.5,21.63]
[1720451711703,18.95021511,139.6,139.52,121.63]
[1720451711910,1.79099492,139.63,139.54,121.63]
[1720451712134,1.79068225,139.62,139.54,121.63]
[1720451712315,7.49568291,139.63,139.56,0.17]
[1720451712517,5.67562851,139.64,139.56,100.17]
[1720451712710,1.79047557,139.64,139.57,0.73625459]
[1720451713033,7.1628,139.61,139.57,0.73557203]
[1720451713221,1.79047557,139.64,139.57,0.17]
[1720451713425,6.0522,139.66,139.59,100.0]
[1720451713637,6.0522,139.66,139.57,100.17]
[1720451713638,11.96443156,139.66,139.57,100.17]
[1720451713951,17.904,139.64,139.52,100.0]
[1720451714238,17.9091,139.6,139.51,1.04875159]
[1720451714442,17.9122,139.57,139.44,101.05195161]
[1720451714755,21.79204091,139.56,139.45,1.05297753]
[1720451714926,78.8801,139.55,139.45,1.05297753]
[1720451715243,7.169,139.49,139.42,1.05297779]
[1720451715415,20.17,139.48,139.43,101.05290226]
[1720451715611,20.0,139.48,139.43,1.05290226]
[1720451715816,20.0,139.48,139.44,1.05336559]
[1720451716036,1.96235281,139.49,139.42,100.0]
[1720451716228,1.96270791,139.48,139.41,1.05372609]
[1720451716433,1.96270791,139.48,139.35,100.0]
[1720451716434,6.0235,139.47,139.35,100.0]
[1720451716644,39.88989252,139.46,139.35,100.0]
[1720451716941,7.1735,139.41,139.35,100.0]
[1720451717250,21.79333646,139.4,139.3,101.05608685]
[1720451717537,0.17,139.39,139.28,100.0]
[1720451717748,7.1767,139.34,139.29,1.05801417]
[1720451717954,20.17,139.33,139.29,1.05854288]
[1720451718121,20.0,139.33,139.26,100.0]
[1720451718523,20.0,139.33,139.27,1.05837117]
[1720451718837,7.1791,139.3,139.27,1.05837117]
[1720451719027,20.0,139.29,139.26,100.0]
[1720451719223,20.0,139.29,139.24,100.0]
[1720451719729,20.0,139.29,139.22,100.0]
[1720451719931,0.17,139.28,139.23,1.06012106]
[1720451720338,7.1818,139.24,139.19,100.0]
[1720451720518,20.0,139.23,139.16,100.0]
[1720451720720,20.0,139.23,139.18,100.0]
[1720451720923,1.9651298,139.28,139.19,1.06134254]
[1720451721139,0.17,139.28,139.21,100.0]
[1720451721465,7.3499,139.28,139.22,1.06014566]
[1720451721747,20.0,139.3,139.11,21.3656]
[1720451721748,20.0,139.27,139.25,100.0]
[1720451721954,20.0,139.3,139.27,100.0]
[1720451722319,20.0,139.3,139.28,1.05902038]
[1720451722523,20.0,139.3,139.26,1.05939707]
[1720451722524,27.1792,139.3,139.26,1.05939707]
[1720451722757,1.79466217,139.38,139.29,7.3487]
[1720451722920,1.4532585,139.4,139.31,100.0]
[1720451723120,6.0235,139.41,139.33,100.17]
[1720451723325,6.0235,139.41,139.35,0.17]
[1720451723326,7.1736,139.4,139.35,0.17]
[1720451723545,7.1756,139.36,139.35,1.05607433]
[1720451723746,6.0235,139.41,139.35,100.0]
[1720451723950,4.81640474,139.43,139.39,0.17]
[1720451724130,4.81640474,139.43,139.39,0.76924984]
[1720451724328,4.81640474,139.43,139.39,1.05535627]
[1720451724629,1.7931196,139.42,139.33,0.17]
[1720451724872,17.9355,139.39,139.33,1.05549061]
[1720451725042,1.79403885,139.38,139.26,100.0]
[1720451725249,2.13403885,139.38,139.28,100.0]
[1720451725461,22.13403885,139.38,139.29,1.05598743]
[1720451725664,7.1778,139.32,139.29,1.05598743]
[1720451725830,17.9393,139.36,139.26,1.05882126]
[1720451725831,7.1788,139.3,139.26,1.05882126]
[1720451726160,20.0,139.29,139.27,1.05918363]
[1720451726333,7.1778,139.32,139.27,1.05918363]
[1720451726652,20.0,139.31,139.27,1.05918363]
[1720451727024,7.1802,139.27,139.21,100.0]
[1720451727229,2.13463092,139.3,139.22,1.05952874]
[1720451727459,20.0,139.26,139.22,1.05952874]
[1720451727641,0.17,139.28,139.22,1.05952874]
[1720451727836,7.1809,139.26,139.2,1.05952874]
[1720451728051,27.1813,139.25,139.21,1.06068004]
[1720451728265,7.1827,139.23,139.2,1.06089999]
[1720451728553,7.1827,139.23,139.16,100.0]
[1720451728755,21.96566582,139.22,139.17,1.06167729]
[1720451729065,20.17,139.22,139.14,100.0]
[1720451729360,20.0,139.22,139.16,100.0]
[1720451729537,1.79546124,139.27,139.2,100.0]
[1720451729732,7.1819,139.24,139.16,100.0]
[1720451729930,7.1828,139.22,139.12,0.17]
[1720451730137,7.1814,139.25,139.19,0.17]
[1720451730341,20.0,139.24,139.19,0.17]
[1720451730732,21.79554163,139.24,139.17,0.17]
[1720451730938,0.17,139.25,139.17,0.17]
[1720451730939,7.1831,139.22,139.17,1.23154779]
[1720451731155,20.0,139.21,139.17,100.17]
[1720451731457,1.79570132,139.29,139.22,100.0]
[1720451731638,1.79570132,139.29,139.2,0.17]
[1720451731639,8.97493121,139.28,139.2,100.17]
[1720451731842,17.9417,139.34,139.16,21.63]
[1720451731843,8.97453121,139.29,139.23,100.0]
[1720451732033,7.1798,139.28,139.22,100.0]
[1720451732236,7.1798,139.28,139.16,28.8157]
[1720451732237,1.79497351,139.31,139.25,0.17]
[1720451732451,7.1776,139.33,139.26,100.0]
[1720451732649,1.79470553,139.32,139.25,1.22964479]
[1720451732932,1.79482998,139.34,139.26,0.17]
[1720451733135,17.9441,139.33,139.25,1.05964479]
[1720451733361,17.9441,139.33,139.23,0.17]
[1720451733362,17.9465,139.31,139.23,1.05994351]
[1720451733655,17.9488,139.29,139.19,1.06041035]
[1720451733828,17.9488,139.29,139.2,100.0]
[1720451733829,7.1814,139.25,139.2,100.0]
[1720451734032,20.0,139.3,139.22,100.0]
[1720451734033,20.0,139.24,139.22,100.0]
[1720451734258,27.1788,139.3,139.24,100.0]
[1720451734554,20.0,139.3,139.26,100.0]
[1720451734734,7.1787,139.3,139.24,100.0]
[1720451734941,7.1787,139.3,139.26,0.17]
[1720451735157,1.79469915,139.29,139.2,0.17]
[1720451735338,7.1801,139.28,139.23,100.0]
[1720451735546,8.97163422,139.34,139.27,100.0]
[1720451735735,1.79428516,139.36,139.29,100.0]
[1720451735940,1.79428516,139.36,139.24,21.63]
[1720451735941,1.79400509,139.4,139.33,100.0]
[1720451736143,6.0235,139.41,139.34,0.56061979]
[1720451736351,7.1737,139.4,139.34,0.56061979]
[1720451736560,7.1737,139.4,139.35,0.17]
[1720451736757,7.1747,139.38,139.34,0.17]
[1720451736937,7.47786209,139.41,139.34,0.17]
[1720451737261,21.63,139.5,139.14,261.4943093]
[1720451737262,1.45431896,139.49,139.4,0.17]
[1720451737468,7.1698,139.48,139.42,0.17]
[1720451737635,7.1707,139.46,139.42,0.17]
[1720451737834,9.28399115,139.48,139.41,100.0]
[1720451738145,7.1718,139.44,139.4,1.22452304]
[1720451738345,7.1711,139.45,139.4,1.05452304]
[1720451739266,1.7928594,139.44,139.36,100.0]
[1720451739515,6.0235,139.43,139.27,100.0]
[1720451739762,17.9388,139.37,139.27,100.0]
[1720451739967,1.79453081,139.36,139.23,100.0]
[1720451740166,7.1791,139.3,139.25,100.0]
[1720451740340,20.0,139.29,139.23,100.0]
[1720451740536,27.1797,139.29,139.23,100.0]
[1720451740845,1.96492358,139.28,139.21,100.0]
[1720451741050,2.13492358,139.28,139.19,100.0]
[1720451741242,7.1812,139.26,139.19,100.0]
[1720451741439,2.13492358,139.28,139.2,0.63296825]
[1720451741440,27.1814,139.25,139.2,0.63296825]
[1720451741647,20.0,139.25,139.19,100.0]
[1720451741854,0.17,139.24,139.19,100.0]
[1720451742047,0.17,139.24,139.19,121.6]
[1720451742256,20.0,139.27,139.22,100.0]
[1720451742439,0.17,139.28,139.22,100.0]
[1720451742842,27.1793,139.29,139.22,100.0]
[1720451743055,7.1804,139.27,139.23,1.06007618]
[1720451743274,20.0,139.26,139.23,1.06007618]
[1720451743440,19.74009624,139.32,139.25,100.0]
[1720451743441,1.79499624,139.32,139.25,100.0]
[1720451743658,1.45292443,139.34,139.26,0.17]
[1720451743981,7.1771,139.34,139.29,0.17]
[1720451744148,7.81779474,139.36,139.29,0.17]
[1720451744350,1.79413037,139.39,139.29,0.17]
[1720451744647,5.77127801,139.4,139.34,0.17]
[1720451744648,1.79400256,139.4,139.34,0.17]
[1720451744846,1.79350781,139.41,139.34,0.17]
[1720451745352,7.99907968,139.42,139.34,0.17]
[1720451745674,1.79355547,139.44,139.37,0.17]
[1720451745872,13.72169253,139.45,139.38,100.0]
[1720451746049,7.1716,139.44,139.37,0.17]
[1720451746663,7.1726,139.42,139.37,0.17]
[1720451746843,7.173,139.41,139.37,0.17]
[1720451747044,7.1727,139.42,139.37,0.17]
[1720451747246,7.1727,139.42,139.36,100.0]
[1720451747454,7.1732,139.41,139.36,100.0]
[1720451747750,1.79339697,139.4,139.33,100.0]
[1720451747963,7.1752,139.37,139.31,100.0]
[1720451748275,1.7938185,139.36,139.32,1.05724372]
[1720451748449,7.1768,139.34,139.3,1.05724372]
[1720451748864,20.17,139.33,139.3,1.05724372]
[1720451749172,7.1787,139.31,139.24,100.0]
[1720451749376,27.349,139.3,139.24,100.0]
[1720451749564,1.96429928,139.32,139.26,100.0]
[1720451749565,7.3481,139.32,139.26,100.0]
[1720451749885,27.3486,139.31,139.24,100.0]
[1720451750050,20.17,139.31,139.24,100.0]
[1720451750250,0.17,139.3,139.24,100.0]
[1720451750447,0.17,139.3,139.21,121.6]
[1720451750679,7.1808,139.26,139.19,100.0]
[1720451750876,0.17,139.27,139.21,100.0]
[1720451751048,29.31525921,139.28,139.19,100.0]
[1720451751248,27.5201,139.28,139.19,100.0]
[1720451751449,20.0,139.28,139.21,121.6]
[1720451751683,0.17,139.29,139.23,100.0]
[1720451751978,7.5191,139.3,139.24,0.17]
[1720451752145,20.0,139.29,139.24,0.17]
[1720451752350,8.97294184,139.32,139.26,0.17]
[1720451752550,0.17,139.33,139.26,0.17]
[1720451752797,7.1787,139.3,139.26,0.17]
[1720451752966,7.1792,139.29,139.26,1.05940028]
[1720451753153,7.1792,139.29,139.23,100.0]
[1720451753154,0.17,139.31,139.24,1.05932421]
[1720451753479,1.79453067,139.33,139.22,0.17]
[1720451753480,7.1797,139.28,139.22,0.17]
[1720451753650,7.1803,139.27,139.22,0.17]
[1720451753851,0.17,139.26,139.22,0.17]
[1720451754052,20.17,139.26,139.22,0.17]
[1720451754280,20.17,139.26,139.2,1.06056495]
[1720451754583,27.3508,139.26,139.19,100.0]
[1720451754757,7.1814,139.25,139.19,100.0]
[1720451754954,20.17,139.24,139.19,100.0]
[1720451755156,27.3518,139.24,139.19,100.0]
[1720451755355,20.17,139.24,139.17,100.0]
[1720451755575,0.17,139.24,139.17,100.0]
[1720451755787,0.17,139.24,139.17,121.6]
[1720451756287,20.17,139.24,139.17,100.0]
[1720451756448,20.17,139.24,139.18,0.17]
[1720451756652,20.17,139.24,139.18,121.77]
[1720451756849,0.17,139.24,139.18,100.0]
[1720451757069,20.0,139.23,139.16,100.0]
[1720451757270,0.17,139.24,139.18,100.0]
[1720451757487,20.17,139.24,139.18,100.0]
[1720451757685,0.17,139.24,139.18,100.0]
[1720451757851,20.0,139.23,139.16,100.0]
[1720451758180,7.3528,139.22,139.16,100.0]
[1720451758355,20.0,139.21,139.16,100.0]
[1720451758682,7.1844,139.19,139.17,0.40388637]
[1720451758888,20.0,139.21,139.16,0.41360289]
[1720451759189,20.0,139.22,139.16,0.41360289]
[1720451759368,20.0,139.22,139.16,100.41360289]
[1720451759563,2.13593175,139.21,139.17,0.41364795]
[1720451759762,0.17,139.21,139.15,0.41405798]
[1720451759963,1.79611428,139.22,139.15,0.41405798]
[1720451759964,20.0,139.22,139.17,100.0]
[1720451760156,7.1822,139.24,139.15,100.0]
[1720451760468,7.51465185,139.27,139.19,100.0]
[1720451760678,1.79529604,139.26,139.19,100.0]
[1720451760983,1.79529604,139.26,139.13,17.9676]
[1720451760984,7.1814,139.25,139.18,0.17]
[1720451761179,1.79536743,139.24,139.18,0.17]
[1720451761370,7.1832,139.22,139.15,100.0]
[1720451761563,8.97571663,139.28,139.19,100.0]
[1720451761877,1.45277994,139.32,139.27,100.0]
[1720451762083,1.79435846,139.37,139.29,100.0]
[1720451762282,6.2056,139.41,139.29,100.0]
[1720451762593,1.79382418,139.4,139.3,100.0]
[1720451762753,1.79382418,139.4,139.29,0.17]
[1720451763073,17.9383,139.37,139.29,0.17]
[1720451763270,17.9383,139.37,139.2,17.959]
[1720451763271,17.9436,139.33,139.26,0.17]
[1720451763483,27.07177546,139.41,139.28,0.17]
[1720451763484,43.05,139.38,139.28,0.17]
[1720451763685,17.9392,139.36,139.28,0.17]
[1720451763881,7.1787,139.3,139.26,0.17]
[1720451764195,21.79482535,139.29,139.21,100.0]
[1720451764485,0.34,139.28,139.21,100.0]
[1720451765064,7.1816,139.25,139.18,100.0]
[1720451765274,27.3522,139.24,139.19,0.57421027]
[1720451765478,27.3522,139.24,139.16,100.0]
[1720451765479,7.1834,139.21,139.16,100.0]
[1720451765654,0.17,139.2,139.16,100.0]
[1720451765857,21.96591924,139.2,139.12,100.0]
[1720451766058,7.1855,139.17,139.12,100.0]
[1720451766280,20.0,139.16,139.1,100.0]
[1720451766855,1.9665596,139.15,139.08,100.0]
[1720451767075,0.17,139.18,139.1,100.0]
[1720451767076,7.1863,139.16,139.1,100.0]
[1720451767275,20.0,139.15,139.1,100.0]
[1720451767466,1.79657924,139.2,139.13,100.0]
[1720451767657,0.17,139.21,139.14,0.37990832]
[1720451767857,0.17,139.22,139.15,100.37988101]
[1720451768081,0.17,139.22,139.15,0.37988101]
[1720451768283,7.185,139.18,139.15,0.37988101]
[1720451768483,1.96625459,139.22,139.14,0.38550565]
[1720451768484,20.17,139.17,139.14,0.38550565]
[1720451768681,20.0,139.17,139.14,0.38550565]
[1720451769192,20.0,139.18,139.15,0.55547794]
[1720451769486,1.7960616,139.27,139.2,0.17]
[1720451769666,6.2056,139.28,139.21,100.0]
[1720451769866,43.05,139.37,139.26,0.17]
[1720451769867,6.2056,139.35,139.26,0.17]
[1720451770063,37.6782314,139.34,139.19,100.0]
[1720451770296,17.9477,139.3,139.2,0.17]
[1720451770498,43.05,139.33,139.18,0.17]
[1720451770499,1.7954456,139.29,139.18,0.17]
[1720451770662,17.95,139.28,139.18,0.62969912]
[1720451770859,7.1824,139.23,139.18,1.23131649]
[1720451771490,7.1839,139.2,139.15,1.06246038]
[1720451771699,1.79622195,139.21,139.15,1.06246038]
[1720451771862,17.9613,139.19,139.11,1.06230762]
[1720451772061,22.1365754,139.18,139.11,1.06230762]
[1720451772296,21.79687898,139.17,139.09,1.06230761]
[1720451772586,0.17,139.18,139.11,100.0]
[1720451772785,20.17,139.18,139.13,100.0]
[1720451772973,20.17,139.18,139.12,1.06339818]
[1720451772974,20.0,139.18,139.15,100.0]